bitfinex/quotes_SOLUSD_20260304
["timestamp","ask_amount","ask_price","bid_price","bid_amount"]
[1772611260266,1.70031378,87.788,87.75,8.00896886]
[1772611260467,28.46760021,87.82,87.78,8.00896886]
[1772611260468,1.70031378,87.818,87.78,8.00896886]
[1772611261072,1.70031378,87.789,87.73,9.69044362]
[1772611261272,8.00896886,87.77,87.73,9.69044362]
[1772611261470,1.70031378,87.813,87.751,1.68147476]
[1772611261656,1.70031378,87.819,87.766,1.68147476]
[1772611261861,8.00896886,87.82,87.78,8.00896886]
[1772611262261,8.00896886,87.81,87.77,8.00896886]
[1772611262473,8.00896886,87.8,87.77,8.00896886]
[1772611262768,8.00896886,87.8,87.75,9.69044362]
[1772611262769,1.70031378,87.799,87.75,9.69044362]
[1772611263076,1.70031378,87.797,87.76,8.00896886]
[1772611263764,1.70031378,87.797,87.77,8.00896886]
[1772611263955,1.70031378,87.797,87.735,1.68147476]
[1772611264161,1.70031378,87.789,87.735,1.68147476]
[1772611264368,39.8642338,87.798,87.74,8.00896886]
[1772611264369,1.70031378,87.779,87.74,8.00896886]
[1772611264753,8.00896886,87.77,87.735,1.68147476]
[1772611264955,8.00896886,87.77,87.63,45.64619035]
[1772611264956,1.70031378,87.759,87.696,1.68147476]
[1772611265167,1.70031378,87.759,87.709,1.68147476]
[1772611265168,8.00896886,87.75,87.709,1.68147476]
[1772611265374,8.00896886,87.74,87.71,8.00896886]
[1772611265569,0.28432314,87.758,87.646,68.45720283]
[1772611265570,1.70031378,87.779,87.731,1.68147476]
[1772611265771,1.70031378,87.779,87.74,8.00896886]
[1772611265977,1.70031378,87.779,87.683,3.69383402]
[1772611265978,8.00896886,87.77,87.73,8.00896886]
[1772611266272,1.70031378,87.769,87.73,8.00896886]
[1772611267370,11.39367423,87.768,87.718,1.68147476]
[1772611267583,11.39367423,87.768,87.73,8.00896886]
[1772611267955,1.70031378,87.767,87.73,8.00896886]
[1772611268162,1.70031378,87.759,87.704,1.68147476]
[1772611268365,8.00896886,87.75,87.71,8.00896886]
[1772611268561,1.70031378,87.749,87.71,8.00896886]
[1772611268760,1.70031378,87.749,87.72,8.00896886]
[1772611269262,1.70031378,87.749,87.704,13.08341259]
[1772611269465,11.39627114,87.748,87.705,11.4018585]
[1772611270061,11.39627114,87.748,87.706,1.68147476]
[1772611271483,28.48888304,87.754,87.706,1.68147476]
[1772611271862,11.39289539,87.774,87.708,1.68147476]
[1772611272063,11.39289539,87.774,87.707,39.90559476]
[1772611272064,11.3892622,87.802,87.76,9.69044362]
[1772611272256,11.3892622,87.802,87.77,8.00896886]
[1772611272257,1.70031378,87.801,87.77,8.00896886]
[1772611272457,1.70031378,87.779,87.72,8.00513712]
[1772611272661,1.70031378,87.749,87.71,8.00513712]
[1772611272862,1.70031378,87.739,87.7,8.00513712]
[1772611273061,8.00513712,87.75,87.71,8.00513712]
[1772611273582,163.4,87.835,87.602,45.66086033]
[1772611273583,8.00513712,87.72,87.68,8.00513712]
[1772611273781,1.70031378,87.709,87.67,8.00513712]
[1772611274570,1.70031378,87.709,87.659,1.68147476]
[1772611274765,1.70031378,87.699,87.67,8.00513712]
[1772611275367,11.40276859,87.698,87.67,8.00513712]
[1772611275900,8.00513712,87.69,87.65,8.00513712]
[1772611276072,39.90969007,87.698,87.452,68.60897791]
[1772611276073,1.70031378,87.679,87.632,1.68147476]
[1772611276273,1.70031378,87.669,87.63,8.00513712]
[1772611276575,39.90969007,87.698,87.61,8.00513712]
[1772611276576,1.70031378,87.649,87.61,8.00513712]
[1772611276777,8.00513712,87.62,87.58,8.00513712]
[1772611276978,8.00513712,87.61,87.58,8.20513712]
[1772611277186,1.70031378,87.619,87.58,8.20513712]
[1772611277394,1.70031378,87.608,87.58,0.2]
[1772611277890,1.70031378,87.599,87.58,1e-08]
[1772611278268,39.95023341,87.609,87.58,1e-08]
[1772611278269,2.16906891,87.589,87.58,1e-08]
[1772611278468,2.16906891,87.589,87.54,5.36881433]
[1772611278871,5.36881433,87.56,87.519,13.66346454]
[1772611279169,2.16906891,87.569,87.53,109.0530812]
[1772611279491,5.36881433,87.56,87.53,92.25974072]
[1772611279793,5.36881433,87.56,87.53,97.62855505]
[1772611279977,5.36881433,87.56,87.53,92.25974072]
[1772611280318,2.16906891,87.549,87.53,21.30161229]
[1772611280591,5.36881433,87.54,87.501,2.39652329]
[1772611280969,5.36881433,87.55,87.511,2.39652329]
[1772611281182,5.36881433,87.56,87.521,2.39652329]
[1772611281382,5.36881433,87.55,87.51,5.36881433]
[1772611281581,11.42217501,87.549,87.511,2.39652329]
[1772611281867,5.36881433,87.54,87.511,2.39652329]
[1772611282389,5.36881433,87.53,87.498,2.39652329]
[1772611282781,5.36881433,87.54,87.501,2.39652329]
[1772611283092,39.97761253,87.549,87.51,5.36881433]
[1772611283284,39.97761253,87.549,87.501,2.39652329]
[1772611283285,5.36881433,87.53,87.501,2.39652329]
[1772611283898,11.42478492,87.529,87.501,2.39652329]
[1772611284199,5.36881433,87.52,87.501,2.39652329]
[1772611284400,11.42478492,87.529,87.501,2.39652329]
[1772611284702,5.36881433,87.52,87.49,0.2]
[1772611285082,5.36881433,87.51,87.49,0.2]
[1772611285499,42.33093995,87.529,87.49,0.2]
[1772611285802,5.36881433,87.52,87.49,0.2]
[1772611287609,2.34419271,87.523,87.49,0.2]
[1772611287913,11.42609033,87.519,87.49,0.2]
[1772611288098,5.36881433,87.51,87.49,0.2]
[1772611288299,2.34419271,87.509,87.463,2.27845176]
[1772611288508,5.36881433,87.5,87.463,2.27845176]
[1772611288686,5.36881433,87.49,87.473,1e-08]
[1772611289387,5.36881433,87.48,87.473,1e-08]
[1772611290006,11.43131494,87.479,87.473,1e-08]
[1772611292036,2.34419271,87.476,87.427,2.27845176]
[1772611292311,5.36881433,87.45,87.415,2.27845176]
[1772611292615,5.36881433,87.45,87.417,2.27845176]
[1772611292793,40.01051705,87.477,87.405,2.27845176]
[1772611292794,5.36881433,87.44,87.405,2.27845176]
[1772611292994,2.34419271,87.453,87.405,2.27845176]
[1772611293189,2.34419271,87.474,87.405,2.27845176]
[1772611293504,5.36881433,87.43,87.401,2.27845176]
[1772611293810,5.36881433,87.44,87.401,2.27845176]
[1772611293995,5.36881433,87.43,87.401,2.27845176]
[1772611294310,2.34419271,87.49,87.421,2.27845176]
[1772611294510,2.34419271,87.489,87.427,2.27845176]
[1772611294693,5.36881433,87.46,87.42,5.36881433]
[1772611294893,40.00461585,87.49,87.4,7.64726609]
[1772611294894,5.36881433,87.44,87.4,7.64726609]
[1772611295105,5.36881433,87.44,87.401,2.27845176]
[1772611295294,5.36881433,87.43,87.401,2.27845176]
[1772611295813,5.36881433,87.44,87.401,13.71996844]
[1772611296703,5.36881433,87.44,87.402,2.27845176]
[1772611297101,11.43654433,87.439,87.402,2.27845176]
[1772611297702,5.36881433,87.43,87.402,2.27845176]
[1772611297915,11.43654433,87.439,87.402,2.27845176]
[1772611298321,13.78073704,87.439,87.402,2.27845176]
[1772611299209,13.78073704,87.439,87.403,11.44125487]
[1772611299426,5.36881433,87.43,87.391,13.72125976]
[1772611299725,7.71300704,87.42,87.382,2.27845176]
[1772611300307,5.36881433,87.43,87.391,2.27845176]
[1772611300614,2.34419271,87.429,87.391,2.27845176]
[1772611300818,5.36881433,87.42,87.391,2.27845176]
[1772611301030,11.43798325,87.428,87.392,13.72114674]
[1772611301820,2.34419271,87.427,87.392,13.72114674]
[1772611302521,2.34419271,87.427,87.386,13.72185135]
[1772611302522,5.36881433,87.42,87.386,13.72185135]
[1772611302906,5.36881433,87.43,87.391,2.27845176]
[1772611303301,5.36881433,87.46,87.421,2.27845176]
[1772611303513,2.34419271,87.449,87.41,5.36881433]
[1772611303716,5.36881433,87.43,87.4,5.36881433]
[1772611303912,5.36881433,87.43,87.39,5.36881433]
[1772611304114,5.36881433,87.43,87.391,2.27845176]
[1772611304727,2.34419271,87.439,87.391,2.27845176]
[1772611305023,3.69383402,87.471,87.391,2.27845176]
[1772611305024,5.36881433,87.42,87.391,2.27845176]
[1772611305220,5.36881433,87.42,87.38,7.64726609]
[1772611305520,2.34419271,87.419,87.369,2.27845176]
[1772611305722,2.34419271,87.399,87.36,5.36881433]
[1772611305920,5.36881433,87.39,87.358,2.27845176]
[1772611307118,5.36881433,87.38,87.358,2.27845176]
[1772611307509,5.36881433,87.38,87.346,2.27845176]
[1772611307710,40.0508073,87.389,87.323,2.27845176]
[1772611307711,5.36881433,87.36,87.323,2.27845176]
[1772611307908,5.36881433,87.36,87.33,5.56881433]
[1772611308110,2.34419271,87.369,87.33,5.56881433]
[1772611308712,5.36881433,87.36,87.33,0.2]
[1772611309429,2.7873531,87.349,87.31,5.56881433]
[1772611309628,5.36881433,87.34,87.31,0.2]
[1772611311125,5.36881433,87.33,87.31,0.2]
[1772611311317,11.45094985,87.329,87.31,0.2]
[1772611311725,2.7873531,87.319,87.28,5.36881433]
[1772611311933,5.36881433,87.3,87.27,16.82740852]
[1772611312121,5.36881433,87.3,87.263,11.45960656]
[1772611312443,2.7873531,87.299,87.26,5.36881433]
[1772611312731,2.7873531,87.299,87.257,2.7342754]
[1772611312915,2.7873531,87.299,87.25,0.2]
[1772611312916,2.7873531,87.289,87.251,11.46118669]
[1772611313117,2.7873531,87.325,87.252,2.7342754]
[1772611313318,11.45488493,87.299,87.26,16.82880294]
[1772611313520,5.36881433,87.29,87.254,11.46072875]
[1772611313725,5.36881433,87.29,87.253,11.46092397]
[1772611313931,2.7873531,87.289,87.252,2.7342754]
[1772611314718,5.36881433,87.28,87.25,0.2]
[1772611315519,5.36881433,87.26,87.228,2.7342754]
[1772611315865,5.36881433,87.26,87.232,11.4636332]
[1772611316040,11.45750982,87.279,87.241,2.7342754]
[1772611316212,11.45646122,87.287,87.251,2.7342754]
[1772611316739,4.37355666,87.28,87.251,2.7342754]
[1772611316923,11.45646122,87.287,87.251,2.7342754]
[1772611317120,5.36881433,87.3,87.261,2.7342754]
[1772611317323,5.36881433,87.29,87.261,2.7342754]
[1772611317715,5.36881433,87.28,87.241,2.7342754]
[1772611318335,5.36881433,87.27,87.241,2.7342754]
[1772611318917,2.7873531,87.278,87.241,2.7342754]
[1772611319420,14.24355032,87.289,87.244,2.7342754]
[1772611319741,5.36881433,87.28,87.244,2.7342754]
[1772611320145,8.15616743,87.28,87.244,2.7342754]
[1772611320347,5.36881433,87.26,87.221,2.7342754]
[1772611320520,5.36881433,87.27,87.231,2.7342754]
[1772611320720,2.7873531,87.28,87.218,40.12933109]
[1772611320721,5.36881433,87.28,87.241,2.7342754]
[1772611321235,5.36881433,87.29,87.251,2.7342754]
[1772611321541,16.82495728,87.29,87.253,2.7342754]
[1772611322114,5.36881433,87.28,87.253,2.7342754]
[1772611322320,5.36881433,87.29,87.253,2.7342754]
[1772611323535,5.36881433,87.29,87.254,11.46079262]
[1772611323736,5.36881433,87.28,87.244,2.7342754]
[1772611324255,2.7873531,87.285,87.244,2.7342754]
[1772611324461,5.36881433,87.27,87.244,2.7342754]
[1772611324743,5.36881433,87.28,87.244,2.7342754]
[1772611324949,5.36881433,87.29,87.251,2.7342754]
[1772611325643,5.36881433,87.29,87.253,2.7342754]
[1772611325845,11.45619722,87.289,87.253,2.7342754]
[1772611326443,5.36881433,87.28,87.253,2.7342754]
[1772611326840,5.36881433,87.27,87.242,2.7342754]
[1772611327439,5.36881433,87.26,87.242,2.7342754]
[1772611327627,5.36881433,87.27,87.242,2.7342754]
[1772611327830,11.45632847,87.288,87.244,2.7342754]
[1772611328037,5.36881433,87.29,87.244,2.7342754]
[1772611328241,5.36881433,87.28,87.244,2.7342754]
[1772611328831,0.28432314,87.28,87.244,2.7342754]
[1772611329145,5.36881433,87.27,87.244,2.7342754]
[1772611329333,5.36881433,87.26,87.232,2.7342754]
[1772611329536,5.36881433,87.25,87.222,2.7342754]
[1772611329942,5.36881433,87.24,87.222,2.7342754]
[1772611330142,5.36881433,87.24,87.211,2.7342754]
[1772611330355,0.28432314,87.255,87.211,2.7342754]
[1772611330529,5.36881433,87.24,87.211,2.7342754]
[1772611332148,5.36881433,87.24,87.213,2.7342754]
[1772611332758,5.36881433,87.23,87.201,2.7342754]
[1772611332963,5.36881433,87.22,87.201,2.7342754]
[1772611333160,5.36881433,87.23,87.201,2.7342754]
[1772611333540,5.36881433,87.25,87.211,2.7342754]
[1772611334055,11.46407731,87.229,87.211,2.7342754]
[1772611334237,5.36881433,87.23,87.201,2.7342754]
[1772611334440,11.46280204,87.239,87.201,2.7342754]
[1772611334633,5.41046707,87.23,87.201,2.7342754]
[1772611335062,11.46280204,87.239,87.201,2.7342754]
[1772611335439,11.46267883,87.24,87.21,5.41046707]
[1772611335659,16.8731459,87.24,87.211,2.7342754]
[1772611336057,57.29722185,87.265,87.2,0.2]
[1772611336058,2.7873531,87.233,87.2,0.2]
[1772611336265,5.41046707,87.21,87.184,11.46990773]
[1772611336768,5.41046707,87.21,87.175,2.7342754]
[1772611336965,5.41046707,87.22,87.181,2.7342754]
[1772611337643,5.41046707,87.23,87.191,2.7342754]
[1772611337859,2.7873531,87.239,87.201,2.7342754]
[1772611337860,11.46276321,87.239,87.201,2.7342754]
[1772611338160,11.46174507,87.247,87.211,3.06737615]
[1772611338395,5.41046707,87.25,87.211,3.06737615]
[1772611338543,5.41046707,87.26,87.221,3.06737615]
[1772611338737,5.41046707,87.26,87.22,5.41046707]
[1772611338738,5.41046707,87.28,87.241,3.06737615]
[1772611338949,3.1899195,87.285,87.241,3.06737615]
[1772611338950,5.41046707,87.27,87.241,3.06737615]
[1772611339259,5.41046707,87.28,87.241,3.06737615]
[1772611340161,3.1899195,87.269,87.236,11.46305167]
[1772611340750,43.37447344,87.279,87.241,3.39414325]
[1772611340954,14.73069888,87.279,87.241,3.39414325]
[1772611341652,5.41046707,87.28,87.251,3.39414325]
[1772611341853,5.41046707,87.27,87.241,3.39414325]
[1772611342060,5.41046707,87.28,87.241,3.39414325]
[1772611342569,5.41046707,87.28,87.243,3.39414325]
[1772611342570,11.45750982,87.279,87.243,3.39414325]
[1772611343071,5.41046707,87.28,87.251,3.39414325]
[1772611343962,11.45750982,87.279,87.251,3.39414325]
[1772611344161,11.45750982,87.279,87.241,3.39414325]
[1772611344365,14.72649995,87.311,87.251,3.39414325]
[1772611344556,14.72649995,87.311,87.27,8.80461032]
[1772611344557,5.41046707,87.3,87.27,8.80461032]
[1772611345256,5.41046707,87.3,87.244,3.39414325]
[1772611345257,3.27318906,87.279,87.244,3.39414325]
[1772611345463,5.41046707,87.28,87.251,3.39414325]
[1772611345660,5.41046707,87.27,87.24,3.39414325]
[1772611345850,5.41046707,87.27,87.24,5.41046707]
[1772611346056,11.45718756,87.282,87.251,3.39414325]
[1772611346475,5.41046707,87.3,87.271,3.39414325]
[1772611346774,5.41046707,87.3,87.241,40.11875149]
[1772611346775,0.28432314,87.319,87.281,3.39414325]
[1772611347864,5.41046707,87.32,87.281,3.39414325]
[1772611348056,5.41046707,87.32,87.28,5.41046707]
[1772611348057,11.45226124,87.319,87.283,3.39414325]
[1772611348565,0.14216157,87.318,87.283,3.39414325]
[1772611348964,0.28432314,87.318,87.283,3.39414325]
[1772611349162,0.28432314,87.328,87.3,5.41046707]
[1772611349370,59.13983273,87.33,87.301,3.39414325]
[1772611349371,53.72936566,87.33,87.301,3.39414325]
[1772611349552,11.45094985,87.329,87.301,3.39414325]
[1772611349749,53.72936566,87.33,87.301,3.39414325]
[1772611350178,53.72936566,87.33,87.303,3.39414325]
[1772611350179,70.59075995,87.33,87.303,3.39414325]
[1772611350480,65.18029288,87.33,87.303,3.39414325]
[1772611350785,3.27318906,87.309,87.27,5.41046707]
[1772611351069,3.27318906,87.309,87.254,3.69383402]
[1772611351070,8.68365613,87.32,87.28,5.41046707]
[1772611351282,3.27318906,87.319,87.28,5.41046707]
[1772611351452,5.41046707,87.32,87.29,5.41046707]
[1772611351653,65.18029288,87.33,87.3,5.41046707]
[1772611351976,65.18018475,87.33,87.3,5.41046707]
[1772611352173,3.27318906,87.329,87.261,3.97815716]
[1772611352360,3.27318906,87.329,87.29,5.41046707]
[1772611352874,3.27318906,87.329,87.3,5.41046707]
[1772611353261,3.27318906,87.329,87.291,3.39414325]
[1772611353462,11.45108098,87.328,87.293,3.39414325]
[1772611354069,14.72427004,87.328,87.293,3.39414325]
[1772611355057,3.5575122,87.327,87.292,11.45580351]
[1772611355674,5.41046707,87.32,87.287,11.45645004]
[1772611355889,3.27318906,87.319,87.285,3.39414325]
[1772611356258,3.27318906,87.309,87.275,14.85205435]
[1772611356457,40.07970134,87.326,87.261,3.39414325]
[1772611356458,3.27318906,87.299,87.261,3.39414325]
[1772611356662,5.41046707,87.29,87.261,3.39414325]
[1772611356878,8.68365613,87.29,87.261,3.39414325]
[1772611357973,11.45619722,87.289,87.261,3.39414325]
[1772611358274,11.45619722,87.289,87.257,3.39414325]
[1772611358967,3.27318906,87.288,87.258,11.46026725]
[1772611359462,5.41046707,87.28,87.253,11.46090993]
[1772611359665,5.41046707,87.28,87.254,3.39414325]
[1772611360361,3.27318906,87.279,87.243,3.39414325]
[1772611360977,11.4576411,87.278,87.244,11.46210627]
[1772611361283,5.41046707,87.27,87.244,3.39414325]
[1772611361459,3.27318906,87.269,87.23,16.87441296]
[1772611361659,3.27318906,87.269,87.231,3.39414325]
[1772611362863,14.73332497,87.259,87.231,3.39414325]
[1772611363464,11.45929247,87.266,87.233,3.39414325]
[1772611363665,0.28432314,87.265,87.233,3.39414325]
[1772611364280,3.5575122,87.265,87.233,3.39414325]
[1772611365166,0.28432314,87.27,87.24,5.41046707]
[1772611365365,0.28432314,87.267,87.24,5.41046707]
[1772611365571,0.28432314,87.267,87.235,3.39414325]
[1772611366162,3.27318906,87.268,87.24,5.41046707]
[1772611366569,3.27318906,87.268,87.235,3.39414325]
[1772611366782,3.27318906,87.268,87.24,8.80461032]
[1772611366983,0.28432314,87.275,87.241,3.39414325]
[1772611367185,11.45816623,87.274,87.242,11.46236904]
[1772611367387,14.73135529,87.274,87.242,11.46236904]
[1772611367690,5.41046707,87.28,87.251,3.39414325]
[1772611367881,28.63623106,87.302,87.261,3.39414325]
[1772611367882,3.27318906,87.293,87.261,3.39414325]
[1772611368069,11.45501615,87.298,87.261,3.39414325]
[1772611368411,0.28432314,87.297,87.27,5.41046707]
[1772611368971,11.45501615,87.298,87.271,3.46521326]
[1772611369697,5.41046707,87.31,87.272,3.46521326]
[1772611369698,11.45427379,87.304,87.272,3.46521326]
[1772611369877,11.45427379,87.304,87.28,5.41046707]
[1772611370477,11.45427379,87.304,87.272,3.46521326]
[1772611370679,3.58664412,87.324,87.291,3.46521326]
[1772611370881,3.58664412,87.324,87.3,5.41046707]
[1772611371086,11.45102406,87.329,87.3,5.41046707]
[1772611371386,3.58664412,87.328,87.3,5.41046707]
[1772611371587,11.45121211,87.327,87.3,5.41046707]
[1772611371771,3.58664412,87.326,87.294,3.46521326]
[1772611373494,11.45121211,87.327,87.29,5.41046707]
[1772611373495,5.41046707,87.32,87.29,5.41046707]
[1772611373675,3.58664412,87.318,87.29,5.41046707]
[1772611374073,3.58664412,87.318,87.287,3.46521326]
[1772611374788,3.58664412,87.318,87.28,5.41046707]
[1772611375176,3.58664412,87.318,87.28,8.87568033]
[1772611375389,3.58664412,87.327,87.291,3.46521326]
[1772611375581,3.58664412,87.327,87.29,5.41046707]
[1772611375582,3.58664412,87.325,87.295,3.46521326]
[1772611375782,3.58664412,87.323,87.293,11.45559212]
[1772611376085,3.58664412,87.328,87.293,11.45559212]
[1772611376693,3.58664412,87.328,87.294,3.46521326]
[1772611376891,11.45099494,87.329,87.301,3.46521326]
[1772611377076,5.41046707,87.33,87.301,3.46521326]
[1772611377587,3.58664412,87.329,87.301,3.46521326]
[1772611378294,3.87096726,87.337,87.302,3.46521326]
[1772611378793,3.58664412,87.337,87.302,3.46521326]
[1772611379087,3.58664412,87.337,87.31,5.41046707]
[1772611379391,11.44976985,87.338,87.311,3.46521326]
[1772611379978,5.41046707,87.33,87.303,11.4543601]
[1772611380172,3.58664412,87.337,87.304,3.46521326]
[1772611380378,3.58664412,87.337,87.299,3.46521326]
[1772611380589,3.58664412,87.337,87.3,8.87568033]
[1772611380792,3.58664412,87.337,87.301,3.46521326]
[1772611381184,3.58664412,87.329,87.301,3.46521326]
[1772611381496,3.58664412,87.329,87.302,11.4544913]
[1772611382087,3.58664412,87.329,87.302,14.91970456]
[1772611382296,11.45108098,87.328,87.302,3.46521326]
[1772611383285,3.58664412,87.329,87.302,3.46521326]
[1772611384202,15.03763481,87.329,87.302,3.46521326]
[1772611384383,15.03763481,87.329,87.303,11.4543601]
[1772611385079,15.03763481,87.329,87.303,14.91957336]
[1772611385679,5.41046707,87.34,87.311,3.46521326]
[1772611386293,11.44963876,87.339,87.312,11.4531794]
[1772611386679,5.41046707,87.34,87.313,3.46521326]
[1772611387191,16.85998797,87.34,87.313,3.46521326]
[1772611387501,11.54567602,87.37,87.331,3.46521326]
[1772611387700,0.1,87.37,87.351,3.46521326]
[1772611387902,0.1,87.37,87.36,5.41046707]
[1772611388106,0.1,87.37,87.351,3.46521326]
[1772611388305,15.02999381,87.387,87.353,3.46521326]
[1772611388495,3.58664412,87.398,87.37,5.41046707]
[1772611388699,11.43951827,87.417,87.381,3.46521326]
[1772611388897,11.43916082,87.419,87.391,3.46521326]
[1772611389202,15.02580494,87.419,87.391,3.46521326]
[1772611389594,3.58664412,87.419,87.391,3.46521326]
[1772611389795,15.02580494,87.419,87.391,3.46521326]
[1772611390107,3.58664412,87.409,87.38,5.41046707]
[1772611390306,3.58664412,87.409,87.371,3.46521326]
[1772611390607,0.1,87.42,87.362,3.46521326]
[1772611390608,5.41046707,87.4,87.362,3.46521326]
[1772611390791,3.58664412,87.399,87.362,3.46521326]
[1772611391308,3.58664412,87.369,87.302,3.46521326]
[1772611391605,3.58664412,87.339,87.309,3.46521326]
[1772611391991,5.41046707,87.35,87.311,3.46521326]
[1772611392302,5.41046707,87.33,87.3,5.41046707]
[1772611392506,11.45094985,87.329,87.3,5.41046707]
[1772611392696,11.4496951,87.339,87.302,3.46521326]
[1772611392903,3.58664412,87.399,87.331,3.46521326]
[1772611393210,3.58664412,87.385,87.35,5.41046707]
[1772611393507,3.58664412,87.375,87.34,5.41046707]
[1772611394101,3.58664412,87.375,87.301,97.36429135]
[1772611394102,3.58664412,87.369,87.33,5.41046707]
[1772611394604,11.44583829,87.368,87.34,5.41046707]
[1772611395603,3.58664412,87.367,87.34,5.41046707]
[1772611395801,3.58664412,87.367,87.331,3.46521326]
[1772611396003,3.58664412,87.359,87.32,5.41046707]
[1772611396302,3.58664412,87.349,87.31,5.41046707]
[1772611396494,3.58664412,87.349,87.311,3.46521326]
[1772611397609,3.58664412,87.349,87.302,28.63619945]
[1772611397610,11.44801504,87.352,87.32,5.39663286]
[1772611397900,0.28432314,87.358,87.33,5.39663286]
[1772611398094,28.61459573,87.368,87.331,3.46521326]
[1772611398095,11.44730764,87.357,87.331,3.46521326]
[1772611398294,28.61459573,87.368,87.34,5.39663286]
[1772611398295,11.44644012,87.364,87.34,5.39663286]
[1772611399291,57.20752737,87.402,87.34,5.39663286]
[1772611399292,11.44043403,87.41,87.356,3.40527906]
[1772611399491,5.39663286,87.43,87.4,5.39663286]
[1772611399492,3.66314829,87.419,87.4,5.39663286]
[1772611399687,3.66314829,87.417,87.39,5.39663286]
[1772611399914,3.66314829,87.417,87.38,5.39663286]
[1772611400212,3.66314829,87.417,87.39,5.39663286]
[1772611400618,3.66314829,87.417,87.38,5.39663286]
[1772611401195,0.28432314,87.416,87.38,5.39663286]
[1772611401513,3.63138999,87.407,87.38,5.39663286]
[1772611402308,3.63138999,87.407,87.37,5.39663286]
[1772611402517,3.63138999,87.405,87.38,5.39663286]
[1772611403010,3.63138999,87.405,87.37,5.39663286]
[1772611403192,0.28432314,87.396,87.339,3.45722402]
[1772611403397,5.39663286,87.4,87.32,5.39663286]
[1772611403398,3.63138999,87.359,87.32,5.39663286]
[1772611403823,3.63138999,87.359,87.33,5.39663286]
[1772611404215,3.63138999,87.359,87.32,5.39663286]
[1772611404827,5.39663286,87.36,87.306,40.08888277]
[1772611404828,3.63138999,87.349,87.31,5.39663286]
[1772611405138,5.39663286,87.33,87.3,5.39663286]
[1772611405418,3.63138999,87.329,87.29,5.39663286]
[1772611405615,3.63138999,87.319,87.28,5.39663286]
[1772611406311,5.39663286,87.35,87.27,5.39663286]
[1772611406312,3.63138999,87.307,87.27,5.39663286]
[1772611406693,3.63138999,87.305,87.27,5.39663286]
[1772611407002,3.63138999,87.299,87.27,5.39663286]
[1772611407909,3.63138999,87.299,87.26,5.39663286]
[1772611408211,11.45501615,87.298,87.26,5.39663286]
[1772611408402,3.63138999,87.297,87.26,5.39663286]
[1772611409031,3.63138999,87.297,87.258,14.92616685]
[1772611409208,3.63138999,87.297,87.26,5.39663286]
[1772611409604,3.63138999,87.297,87.258,3.46598411]
[1772611409807,3.63138999,87.297,87.26,5.39663286]
[1772611410112,3.63138999,87.295,87.26,5.39663286]
[1772611410327,3.63138999,87.309,87.261,14.90256622]
[1772611410498,3.63138999,87.299,87.261,3.44269297]
[1772611410700,3.63138999,87.297,87.261,3.44269297]
[1772611410916,3.63138999,87.297,87.26,5.39663286]
[1772611411109,3.63138999,87.297,87.27,5.39663286]
[1772611411311,3.63138999,87.297,87.257,3.43698034]
[1772611411502,3.63138999,87.297,87.26,5.39663286]
[1772611411698,3.63138999,87.289,87.26,5.39663286]
[1772611411915,3.63138999,87.289,87.25,5.39663286]
[1772611412109,3.63138999,87.277,87.238,11.46277424]
[1772611412302,3.63138999,87.277,87.24,5.39663286]
[1772611412728,3.63138999,87.269,87.214,3.43131089]
[1772611412906,3.63138999,87.277,87.24,5.39663286]
[1772611413438,3.63138999,87.267,87.231,3.42568418]
[1772611413998,9.02802285,87.26,87.23,5.39663286]
[1772611414219,11.46013591,87.259,87.231,11.46381446]
[1772611414608,11.45935365,87.265,87.231,11.46381446]
[1772611414805,11.45935365,87.265,87.24,5.39663286]
[1772611415622,0.14216157,87.283,87.231,40.12335063]
[1772611415810,11.45675601,87.285,87.231,3.51944434]
[1772611415811,3.77355156,87.269,87.231,3.51944434]
[1772611415996,3.77355156,87.269,87.203,61.03067328]
[1772611415997,3.63138999,87.259,87.222,11.46490078]
[1772611416416,3.63138999,87.257,87.22,8.9160772]
[1772611416616,5.39663286,87.25,87.22,8.9160772]
[1772611417117,3.63138999,87.257,87.22,8.9160772]
[1772611417302,3.63138999,87.257,87.221,3.51944434]
[1772611417503,9.02802285,87.25,87.221,3.51944434]
[1772611417817,9.02802285,87.25,87.21,8.9160772]
[1772611417818,3.63138999,87.247,87.21,8.9160772]
[1772611418022,3.63138999,87.239,87.21,5.39663286]
[1772611418417,11.46289461,87.238,87.21,5.39663286]
[1772611419917,3.63138999,87.238,87.21,5.39663286]
[1772611420725,11.46171215,87.247,87.221,3.51944434]
[1772611421031,3.63138999,87.246,87.211,3.51944434]
[1772611421203,3.63138999,87.246,87.21,5.39663286]
[1772611421912,11.45895402,87.268,87.24,5.39663286]
[1772611422222,5.39663286,87.26,87.231,3.51944434]
[1772611422617,0.28432314,87.248,87.21,5.39663286]
[1772611422817,0.28432314,87.248,87.209,3.51944434]
[1772611422818,0.28432314,87.238,87.199,3.51944434]
[1772611423023,3.63138999,87.227,87.19,5.59663286]
[1772611423213,3.63138999,87.221,87.19,5.59663286]
[1772611423927,11.46526026,87.22,87.19,5.59663286]
[1772611424126,3.63138999,87.219,87.19,5.59663286]
[1772611424508,3.63138999,87.219,87.19,17.06582415]
[1772611425116,3.91571313,87.219,87.19,0.2]
[1772611426128,40.12933109,87.218,87.19,0.2]